bitfinex/quotes_SOLUSD_20250704
["timestamp","ask_amount","ask_price","bid_price","bid_amount"]
[1751651576918,6.86811981,146.59,146.55,6.92360968]
[1751651577110,5.11260502,146.58,146.55,6.92360968]
[1751651577304,5.11260502,146.57,146.55,6.92360968]
[1751651577497,6.86811981,146.59,146.55,13.79172949]
[1751651577699,5.11334381,146.58,146.55,13.79172949]
[1751651577904,5.11334381,146.57,146.55,11.30824327]
[1751651578104,4.38463359,146.59,146.55,11.30824327]
[1751651578309,5.11411443,146.58,146.55,11.30824327]
[1751651578514,5.11411443,146.57,146.55,11.30824327]
[1751651578700,4.38463359,146.59,146.55,11.30824327]
[1751651578898,5.11411443,146.58,146.55,11.30824327]
[1751651579116,5.11411443,146.57,146.55,11.30824327]
[1751651579319,4.38463359,146.59,146.55,11.30824327]
[1751651579499,5.11409871,146.58,146.55,11.30824327]
[1751651579700,4.38463359,146.59,146.55,11.30824327]
[1751651579906,5.11409871,146.58,146.55,11.30824327]
[1751651580106,4.38463359,146.59,146.55,11.30824327]
[1751651580307,5.11436841,146.58,146.55,11.30824327]
[1751651580507,4.38463359,146.59,146.55,6.92360968]
[1751651580804,5.11436841,146.58,146.55,6.92360968]
[1751651580999,4.38463359,146.59,146.55,6.92360968]
[1751651581297,5.11455136,146.58,146.55,6.92360968]
[1751651581498,4.38463359,146.59,146.55,6.92360968]
[1751651581707,5.11455277,146.58,146.55,6.92360968]
[1751651581905,4.38463359,146.59,146.55,6.92360968]
[1751651582106,5.11455136,146.58,146.57,4.38463359]
[1751651582301,4.38463359,146.64,146.57,4.38463359]
[1751651582609,4.38463359,146.64,146.58,23.87774593]
[1751651582610,9.4978145,146.63,146.58,23.87774593]
[1751651582920,5.11318091,146.62,146.59,4.38463359]
[1751651583099,5.11318091,146.61,146.59,4.38463359]
[1751651583302,4.38463359,146.63,146.59,4.38463359]
[1751651583626,5.1121309,146.62,146.59,4.38463359]
[1751651583811,5.1121309,146.61,146.59,6.84711344]
[1751651584009,6.84711344,146.63,146.59,6.84711344]
[1751651584201,5.11096309,146.62,146.59,6.84711344]
[1751651584406,5.11096309,146.61,146.59,6.84711344]
[1751651584620,6.84711344,146.63,146.59,6.84711344]
[1751651584916,5.1114319,146.62,146.59,6.84711344]
[1751651585118,5.1114319,146.61,146.59,6.84711344]
[1751651585318,6.84711344,146.63,146.59,6.84711344]
[1751651585519,5.11093541,146.62,146.59,6.84711344]
[1751651585705,5.11093541,146.61,146.59,6.84711344]
[1751651586028,6.84711344,146.63,146.6,6.8212824]
[1751651586203,5.11061372,146.62,146.6,6.8212824]
[1751651586403,5.11061372,146.61,146.6,6.8212824]
[1751651586623,5.11061372,146.62,146.6,6.8212824]
[1751651586825,5.11061372,146.61,146.6,6.8212824]
[1751651588624,5.11061372,146.62,146.6,6.8212824]
[1751651588814,6.84711344,146.63,146.6,6.8212824]
[1751651589013,5.109257,146.62,146.6,6.8212824]
[1751651589310,6.84711344,146.63,146.6,6.8212824]
[1751651590031,13.74694276,146.67,146.62,6.84711344]
[1751651590227,5.10539695,146.66,146.63,6.84711344]
[1751651590432,5.10539695,146.65,146.6,23.8744884]
[1751651590620,5.10539695,146.66,146.62,6.84711344]
[1751651590929,11.95251039,146.65,146.61,6.84711344]
[1751651591116,6.84711344,146.65,146.6,13.66839584]
[1751651592044,6.84711344,146.64,146.6,13.66839584]
[1751651592632,6.84711344,146.64,146.6,13.66839584]
[1751651594147,6.84711344,146.64,146.6,6.8212824]
[1751651594533,11.94605677,146.64,146.6,6.8212824]
[1751651599562,18.76548447,146.64,146.6,6.8212824]
[1751651599737,13.66654114,146.64,146.6,6.8212824]
[1751651599940,6.84711344,146.64,146.6,6.8212824]
[1751651603463,6.84711344,146.64,146.6,6.84711344]
[1751651603865,4.38184466,146.63,146.59,4.38184466]
[1751651604837,4.38184466,146.62,146.57,6.82250139]
[1751651605069,4.38184466,146.6,146.56,4.38184466]
[1751651605246,4.38184466,146.6,146.55,0.1]
[1751651605247,4.38184466,146.59,146.55,4.48184466]
[1751651605644,4.38184466,146.59,146.55,6.92346021]
[1751651605941,4.38184466,146.58,146.55,0.1]
[1751651606149,4.38184466,146.57,146.55,0.1]
[1751651606663,4.38184466,146.56,146.55,0.1]
[1751651607744,6.82226129,146.58,146.55,0.1]
[1751651607961,6.85371527,146.56,146.55,0.1]
[1751651608547,6.85371527,146.57,146.55,0.1]
[1751651609340,11.95199931,146.58,146.55,6.92360051]
[1751651609566,5.09828404,146.6,146.56,6.85371527]
[1751651609742,5.09828404,146.6,146.57,13.67639385]
[1751651609943,6.85371527,146.63,146.59,6.85371527]
[1751651611058,32.85371527,146.64,146.6,6.85371527]
[1751651611369,6.85371527,146.65,146.61,6.85371527]
[1751651611577,11.94956158,146.65,146.61,6.85371527]
[1751651611772,5.09584631,146.65,146.62,6.82035193]
[1751651612055,11.94956158,146.65,146.62,6.82035193]
[1751651613974,11.94956158,146.65,146.62,6.82035193]
[1751651615777,6.85371527,146.64,146.6,6.85371527]
[1751651616660,5.09584631,146.65,146.6,6.85371527]
[1751651616966,6.85371527,146.64,146.6,6.85371527]
[1751651617173,6.85371527,146.64,146.58,17.05452166]
[1751651617380,6.85371527,146.64,146.6,6.85371527]
[1751651617880,6.85371527,146.64,146.6,13.67453906]
[1751651620054,5.09584631,146.65,146.62,6.85371527]
[1751651621359,32.85371527,146.66,146.62,6.85371527]
[1751651622584,32.85371527,146.66,146.61,6.85371527]
[1751651623285,5.09861963,146.65,146.61,6.85371527]
[1751651624279,5.09861963,146.65,146.62,6.85371527]
[1751651625572,5.09861963,146.65,146.63,6.81988678]
[1751651626993,6.85371527,146.65,146.63,6.81988678]
[1751651627177,11.9537731,146.65,146.63,6.81988678]
[1751651628193,11.9537731,146.65,146.62,6.82035193]
[1751651631297,5.10005783,146.65,146.62,6.82035193]
[1751651631660,11.9537731,146.65,146.62,6.82035193]
[1751651634392,5.10005783,146.65,146.62,30.72494702]
[1751651634568,32.85371527,146.66,146.62,30.72494702]
[1751651634769,32.85371527,146.66,146.62,13.6740672]
[1751651637198,26.2,146.67,146.63,6.85371527]
[1751651637405,0.2,146.67,146.65,6.85371527]
[1751651638199,0.2,146.67,146.66,6.81849174]
[1751651643311,0.2,146.67,146.66,13.67220701]
[1751651644416,1e-08,146.67,146.66,13.67220701]
[1751651647625,0.2,146.68,146.66,13.67220701]
[1751651647626,1e-08,146.68,146.66,13.67220701]
[1751651647793,1e-08,146.68,146.67,6.85371527]
[1751651648011,0.2,146.7,146.67,26.18516681]
[1751651648326,1e-08,146.71,146.69,6.85371527]
[1751651648498,1e-08,146.71,146.7,7.53537852]
[1751651649095,1e-08,146.73,146.71,44.64964886]
[1751651649294,1e-08,146.73,146.69,1.6229]
[1751651649295,0.1,146.77,146.75,26.0]
[1751651649515,0.1,146.77,146.75,32.85371527]
[1751651649716,0.1,146.77,146.76,6.81384573]
[1751651650021,0.1,146.77,146.76,13.667561]
[1751651650599,0.1,146.77,146.75,13.66786492]
[1751651650917,0.1,146.77,146.75,6.81414965]
[1751651651101,0.1,146.77,146.75,13.66786492]
[1751651651623,0.1,146.77,146.73,23.853116]
[1751651652138,0.1,146.77,146.75,6.85371527]
[1751651653137,0.1,146.77,146.76,6.81384573]
[1751651653438,6.95371527,146.77,146.73,6.81523887]
[1751651654121,0.1,146.77,146.73,6.81523887]
[1751651654325,6.95371527,146.77,146.73,6.81523887]
[1751651654718,6.85371527,146.76,146.73,6.81523887]
[1751651655642,6.95371527,146.77,146.73,6.81523887]
[1751651656147,6.95371527,146.77,146.73,13.66895414]
[1751651656948,0.1,146.77,146.73,13.66895414]
[1751651657125,0.1,146.77,146.75,6.85371527]
[1751651657334,0.1,146.77,146.74,6.85371527]
[1751651657534,0.1,146.77,146.75,6.85371527]
[1751651658650,0.1,146.77,146.75,6.85371527]
[1751651659347,0.1,146.77,146.76,6.85371527]
[1751651661359,0.1,146.77,146.76,13.667561]
[1751651665444,0.1,146.77,146.76,6.81384573]
[1751651665637,0.1,146.77,146.76,13.667561]
[1751651665840,0.1,146.77,146.76,6.81384573]
[1751651666352,0.1,146.77,146.76,13.667561]
[1751651666569,0.1,146.77,146.76,6.81384573]
[1751651668575,6.95371527,146.77,146.73,13.66895414]
[1751651669878,0.1,146.77,146.73,13.66895414]
[1751651670466,0.1,146.77,146.74,6.85371527]
[1751651670666,0.1,146.77,146.75,6.85371527]
[1751651673479,0.1,146.77,146.76,6.81384573]
[1751651679506,0.1,146.77,146.75,6.81419397]
[1751651682607,6.85371527,146.76,146.72,6.85371527]
[1751651682985,12.03392855,146.77,146.72,6.85371527]
[1751651683910,12.03392855,146.77,146.73,13.66895414]
[1751651684808,5.18569759,146.78,146.73,57.92953042]
[1751651685113,0.1,146.78,146.76,6.85371527]
[1751651685312,0.1,146.78,146.74,6.85371527]
[1751651685902,0.1,146.78,146.75,6.81431005]
[1751651686814,6.95371527,146.78,146.75,6.81431005]
[1751651687110,6.85371527,146.77,146.75,6.81431005]
[1751651687297,6.85371527,146.77,146.71,77.70029599]
[1751651687490,6.85371527,146.77,146.72,13.66941865]
[1751651687689,6.85371527,146.76,146.72,6.81570338]
[1751651687884,6.85371527,146.75,146.72,6.81570338]
[1751651688117,6.85371527,146.74,146.72,6.81570338]
[1751651688310,6.85371527,146.75,146.72,6.81570338]
[1751651691221,6.85371527,146.75,146.69,23.85984046]
[1751651691411,6.85371527,146.75,146.7,6.85371527]
[1751651693431,6.85371527,146.72,146.68,0.2]
[1751651693601,6.85371527,146.72,146.68,7.05371527]
[1751651694825,6.85371527,146.72,146.69,6.81709727]
[1751651695137,26.0,146.74,146.69,30.71355573]
[1751651695421,6.85371527,146.76,146.71,6.85371527]
[1751651695803,6.85371527,146.76,146.69,23.85984046]
[1751651696003,6.85371527,146.75,146.71,6.85371527]
[1751651696818,5.09759526,146.76,146.72,6.81570338]
[1751651697031,11.95131053,146.76,146.72,6.81570338]
[1751651697809,6.85371527,146.75,146.72,6.81570338]
[1751651699431,6.85371527,146.75,146.71,6.81616795]
[1751651701846,6.85371527,146.75,146.71,13.66988322]
[1751651702009,11.95131053,146.76,146.71,13.66988322]
[1751651703032,5.09759526,146.76,146.71,13.66988322]
[1751651703338,5.09759526,146.76,146.72,6.85371527]
[1751651703635,0.1,146.78,146.74,6.85371527]
[1751651703937,0.1,146.78,146.76,6.85371527]
[1751651705121,0.1,146.78,146.71,83.93742757]
[1751651705322,0.1,146.78,146.75,6.81431005]
[1751651706740,6.95371527,146.78,146.75,6.81431005]
[1751651707432,6.85371527,146.77,146.75,6.81431005]
[1751651707632,6.85371527,146.76,146.72,23.89192963]
[1751651707840,6.85371527,146.76,146.73,6.81523887]
[1751651709119,6.85371527,146.75,146.72,6.8154978]
[1751651709318,5.09652667,146.77,146.74,6.85371527]
[1751651709528,0.1,146.78,146.72,23.85475625]
[1751651709728,0.1,146.78,146.74,6.85371527]
[1751651712240,0.1,146.78,146.75,6.81431005]
[1751651717946,5.09783549,146.77,146.75,6.81431005]
[1751651718334,5.09783549,146.77,146.74,6.85371527]
[1751651720958,5.09783549,146.77,146.73,23.89077715]
[1751651721565,6.95371527,146.78,146.73,23.89077715]
[1751651722960,6.95371527,146.78,146.73,30.70601602]
[1751651723131,6.85371527,146.77,146.73,6.81523887]
[1751651723330,6.85371527,146.76,146.73,6.81523887]
[1751651723749,6.85371527,146.75,146.73,6.81523887]
[1751651725270,6.85371527,146.75,146.71,23.85649529]
[1751651725560,6.85371527,146.75,146.71,30.71021056]
[1751651726273,1.6153,146.77,146.71,30.71021056]
[1751651726452,6.85371527,146.76,146.72,6.85371527]
[1751651727670,6.85371527,146.76,146.73,6.81523887]
[1751651729747,6.85371527,146.76,146.72,6.85371527]
[1751651730473,6.85371527,146.76,146.71,17.04032734]
[1751651730688,6.85371527,146.75,146.71,23.89404261]
[1751651731445,6.85371527,146.76,146.72,6.85371527]
[1751651734145,6.85371527,146.76,146.73,6.81523887]
[1751651740483,11.95989606,146.76,146.73,6.81523887]
[1751651741488,11.95989606,146.76,146.71,17.04032734]
[1751651741787,11.95989606,146.76,146.72,6.85371527]
[1751651742189,6.85371527,146.76,146.72,6.85371527]
[1751651745786,6.85371527,146.76,146.73,6.81523887]
[1751651746674,11.96174485,146.76,146.73,6.81523887]
[1751651747293,6.85371527,146.76,146.73,6.81523887]
[1751651751098,6.85371527,146.76,146.72,6.85371527]
[1751651751276,5.11035774,146.75,146.72,6.85371527]
[1751651751575,6.85371527,146.76,146.72,6.85371527]
[1751651754278,5.110816,146.75,146.73,6.81523887]
[1751651754480,6.85371527,146.76,146.73,6.81523887]
[1751651754688,5.11081459,146.75,146.73,6.81523887]
[1751651754881,6.85371527,146.76,146.73,6.81523887]
[1751651755179,5.11081459,146.75,146.73,6.81523887]
[1751651755379,6.85371527,146.76,146.73,6.81523887]
[1751651755702,5.11124176,146.75,146.73,6.81523887]
[1751651755894,4.37422214,146.76,146.73,6.81523887]
[1751651756077,5.11124176,146.75,146.73,6.81523887]
[1751651756273,4.37422214,146.76,146.73,6.81523887]
[1751651756472,5.11146104,146.75,146.73,6.81523887]
[1751651756674,4.37422214,146.76,146.73,6.81523887]
[1751651756995,5.11146104,146.75,146.73,6.81523887]
[1751651757318,4.37422214,146.76,146.7,23.85821403]
[1751651757492,5.11170297,146.75,146.72,4.37422214]
[1751651757692,4.37422214,146.76,146.72,4.37422214]
[1751651758393,5.98952214,146.77,146.72,4.37422214]
[1751651758592,5.11179117,146.76,146.72,4.37422214]
[1751651758813,5.98952214,146.77,146.72,4.37422214]
[1751651759015,5.11178976,146.76,146.72,4.37422214]
[1751651759194,5.98952214,146.77,146.72,4.37422214]
[1751651759400,5.11188522,146.76,146.72,4.37422214]
[1751651759608,5.98952214,146.77,146.73,6.81523887]
[1751651759789,5.11188381,146.76,146.73,6.81523887]
[1751651759992,5.11188381,146.75,146.73,6.81523887]
[1751651760215,5.98952214,146.77,146.73,6.81523887]
[1751651760419,5.11193316,146.76,146.73,6.81523887]
[1751651760588,5.11193316,146.75,146.73,6.81523887]
[1751651760788,0.1,146.78,146.74,4.37422214]
[1751651761009,0.1,146.78,146.76,4.37422214]
[1751651761601,0.1,146.78,146.73,23.85333605]
[1751651761804,0.1,146.78,146.75,4.37422214]
[1751651762517,0.1,146.78,146.73,23.85333605]
[1751651762709,0.1,146.78,146.76,6.81384573]
[1751651766021,0.1,146.78,146.76,11.18806787]
[1751651767718,4.47422214,146.78,146.76,6.81384573]
[1751651769721,4.47422214,146.78,146.75,6.81431005]
[1751651771626,9.57587128,146.78,146.75,6.81431005]
[1751651771805,4.47422214,146.78,146.75,6.81431005]
[1751651772013,0.1,146.78,146.75,6.81431005]
[1751651772218,4.47422214,146.78,146.75,6.81431005]
[1751651772426,0.1,146.78,146.75,6.81431005]
[1751651772933,0.1,146.78,146.72,23.85496183]
[1751651773129,4.47422214,146.78,146.74,4.37422214]
[1751651773718,0.1,146.78,146.74,4.37422214]
[1751651774917,0.1,146.78,146.75,6.81431005]
[1751651775725,0.1,146.78,146.75,11.18853219]
[1751651776036,0.1,146.78,146.77,4.37422214]
[1751651777731,0.1,146.78,146.77,6.82808229]
[1751651778246,1e-08,146.78,146.77,6.82808229]
[1751651779833,1e-08,146.78,146.77,12.21636409]
[1751651780331,1e-08,146.78,146.77,19.02974557]
[1751651780558,1e-08,146.78,146.77,13.64146377]
[1751651782252,1e-08,146.78,146.77,19.1181467]
[1751651784143,1e-08,146.78,146.77,37.76779556]
[1751651784346,0.1,146.83,146.77,95.69623895]
[1751651784557,0.1,146.83,146.82,6.82808229]
[1751651785153,0.1,146.83,146.79,44.64964886]
[1751651785348,0.1,146.83,146.82,6.82808229]
[1751651786351,0.1,146.83,146.82,13.63914345]
[1751651791439,0.1,146.83,146.82,6.81106116]
[1751651791640,0.1,146.83,146.82,13.63914345]
[1751651797880,0.1,146.83,146.82,11.17848887]
[1751651798673,0.1,146.83,146.82,6.81106116]
[1751651798980,0.1,146.83,146.82,11.17848887]
[1751651800557,0.1,146.83,146.82,6.81106116]
[1751651800877,0.1,146.83,146.82,11.17848887]
[1751651806378,0.1,146.83,146.82,4.36742771]
[1751651806569,0.1,146.83,146.81,6.8115251]
[1751651808484,0.1,146.83,146.8,23.84160331]
[1751651809076,0.1,146.83,146.8,28.20903102]
[1751651811388,0.1,146.83,146.8,23.84160331]
[1751651812973,0.1,146.83,146.75,6.81431005]
[1751651812974,12.10482771,146.81,146.75,6.81431005]
[1751651813173,4.36742771,146.76,146.75,6.81431005]
[1751651813778,6.83468762,146.76,146.75,6.81431005]
[1751651814478,6.83468762,146.76,146.72,0.2]
[1751651814675,6.83468762,146.75,146.72,0.2]
[1751651814876,1.5423,146.75,146.72,0.2]
[1751651815404,8.37698762,146.75,146.72,7.01555534]
[1751651816575,6.83468762,146.74,146.72,7.01555534]
[1751651818221,8.37698762,146.75,146.72,7.01555534]
[1751651826799,6.83468762,146.74,146.72,7.01555534]
[1751651827523,1.5423,146.75,146.72,7.01555534]
[1751651827524,8.37698762,146.75,146.72,7.01555534]
[1751651833554,6.83468762,146.75,146.72,7.01555534]
[1751651835150,6.1951,146.78,146.72,7.01555534]
[1751651835351,6.83468762,146.75,146.72,7.01555534]
[1751651835652,6.83468762,146.75,146.72,24.05481379]
[1751651835846,4.3746144,146.75,146.72,24.05481379]
[1751651836955,6.1951,146.78,146.72,24.05481379]
[1751651837154,4.3746144,146.79,146.75,4.3746144]
[1751651837454,4.3746144,146.79,146.72,43.20407139]
[1751651837455,4.3746144,146.81,146.77,4.3746144]
[1751651838443,4.3746144,146.8,146.73,18.64964886]
[1751651838641,4.3746144,146.8,146.76,4.3746144]
[1751651839759,4.3746144,146.8,146.76,6.8307094]
[1751651839760,6.8307094,146.8,146.76,6.8307094]
[1751651840134,32.0088,146.82,146.76,6.8307094]
[1751651840335,6.8307094,146.8,146.76,6.8307094]
[1751651842479,6.8307094,146.81,146.77,6.8307094]
[1751651842763,26.0,146.82,146.77,6.8307094]
[1751651842935,6.8307094,146.81,146.77,6.8307094]
[1751651844145,6.8307094,146.81,146.78,6.81291729]
[1751651844462,6.8307094,146.8,146.78,6.81291729]
[1751651846140,6.8307094,146.8,146.77,6.81338148]
[1751651847464,6.8307094,146.81,146.77,30.67754458]
[1751651847661,0.1,146.83,146.8,6.8307094]
[1751651848250,0.1,146.83,146.81,6.8115251]
[1751651848749,0.1,146.83,146.81,13.6422345]
[1751651849147,0.1,146.83,146.81,6.8115251]
[1751651850875,0.1,146.83,146.8,6.8307094]
[1751651851896,0.1,146.83,146.78,23.84521051]
[1751651852067,0.1,146.83,146.8,6.8307094]
[1751651852269,0.1,146.83,146.81,6.8307094]
[1751651852464,0.1,146.83,146.78,23.84521051]
[1751651852664,0.1,146.83,146.81,6.8307094]
[1751651853390,0.1,146.83,146.81,6.8115251]
[1751651854687,0.1,146.83,146.81,6.8307094]
[1751651855285,0.1,146.83,146.78,23.84521051]
[1751651855482,0.1,146.83,146.8,6.8307094]
[1751651855992,0.1,146.83,146.82,6.8307094]
[1751651857269,0.1,146.83,146.82,13.64177056]
[1751651860295,0.1,146.83,146.82,6.81106116]
[1751651860497,0.1,146.83,146.82,13.64177056]
[1751651863183,0.1,146.83,146.82,6.81106116]
[1751651863390,0.1,146.83,146.82,13.64177056]
[1751651865078,0.1,146.83,146.82,6.81106116]
[1751651865388,0.1,146.83,146.82,13.64177056]
[1751651865790,0.1,146.83,146.82,11.17944235]
[1751651871405,0.1,146.83,146.82,6.81106116]
[1751651871612,0.1,146.83,146.72,17.67352476]
[1751651871613,4.46838119,146.83,146.76,4.36838119]
[1751651871913,4.36838119,146.79,146.75,4.36838119]
[1751651872091,4.36838119,146.8,146.76,6.81384573]
[1751651872496,4.36838119,146.8,146.76,11.18222692]
[1751651873707,4.36838119,146.8,146.76,28.21684125]
[1751651873909,6.83079689,146.8,146.76,30.67925695]
[1751651874309,1.6474,146.82,146.76,30.67925695]
[1751651874691,6.83079689,146.8,146.76,30.67925695]
[1751651880098,1.6474,146.82,146.79,6.83079689]
[1751651880817,1.6474,146.82,146.8,6.8119891]
[1751651886917,8.47819689,146.82,146.78,6.83079689]
[1751651887119,6.83079689,146.8,146.76,13.64464262]
[1751651890325,6.83079689,146.79,146.76,6.81384573]
[1751651890913,11.92683739,146.8,146.76,13.64464262]
[1751651891219,6.83079689,146.8,146.76,13.64464262]
[1751651891403,6.83079689,146.8,146.76,6.81384573]
[1751651891725,6.83079689,146.8,146.76,13.64464262]
[1751651893631,6.83079689,146.79,146.74,23.8506911]
[1751651893833,6.83079689,146.79,146.75,6.83079689]
[1751651894321,6.81155825,146.81,146.75,6.83079689]
[1751651894632,6.83079689,146.79,146.75,6.83079689]
[1751651895931,6.83079689,146.79,146.76,6.81384573]
[1751651899616,6.83079689,146.8,146.76,6.81384573]
[1751651899818,4.37208698,146.8,146.75,4.37208698]
[1751651900206,4.37208698,146.8,146.76,4.37208698]
[1751651901506,4.37208698,146.8,146.77,6.81338148]
[1751651902726,4.37208698,146.79,146.77,6.81338148]
[1751651903434,4.37208698,146.79,146.76,6.81384573]
[1751651907436,6.4592,146.8,146.76,6.81384573]
[1751651907620,4.37208698,146.79,146.76,6.81384573]
[1751651909138,10.83128698,146.8,146.76,6.81384573]
[1751651909637,6.4592,146.8,146.76,11.18593271]
[1751651909845,10.83128698,146.8,146.76,28.22054704]
[1751651911151,6.4592,146.8,146.76,28.22054704]
[1751651911452,9.46659457,146.81,146.77,4.37208698]
[1751651911625,4.37208698,146.81,146.77,4.37208698]
[1751651912239,4.37208698,146.81,146.76,23.84846006]
[1751651912439,4.37208698,146.81,146.77,4.37208698]
[1751651913529,9.46659457,146.81,146.78,6.81291729]
[1751651914839,9.46659457,146.81,146.78,28.21729749]
[1751651914840,5.09450759,146.81,146.78,28.21729749]
[1751651915339,11.1193374,146.82,146.78,28.21729749]
[1751651915545,1.6474,146.82,146.78,28.21729749]
[1751651916544,6.7511189,146.82,146.79,4.37208698]
[1751651918440,1.6474,146.82,146.8,6.8119891]
[1751651919144,4.37208698,146.81,146.8,6.8119891]
[1751651919447,4.37208698,146.81,146.78,17.03229322]
[1751651919448,9.47575755,146.81,146.77,6.81338148]
[1751651919738,4.37208698,146.8,146.77,6.81338148]
[1751651920526,4.37208698,146.8,146.77,23.84683518]
[1751651920927,4.37208698,146.81,146.77,23.84683518]
[1751651921850,6.83053005,146.81,146.77,23.84683518]
[1751651923352,6.83053005,146.81,146.77,30.67736523]
[1751651924256,8.47793005,146.82,146.77,30.67736523]
[1751651924430,5.1035722,146.81,146.77,30.67736523]
[1751651924631,8.47793005,146.82,146.77,30.67736523]
[1751651926452,5.1038996,146.81,146.78,6.83053005]
[1751651927629,8.47793005,146.82,146.79,6.81245316]
[1751651928344,1.6474,146.82,146.79,13.64298321]
[1751651928543,0.1,146.83,146.81,6.83053005]
[1751651928728,0.1,146.83,146.79,30.67411612]
[1751651928930,0.1,146.83,146.82,6.83053005]
[1751651929848,0.1,146.83,146.82,13.64159121]
[1751651933031,0.1,146.83,146.82,6.81106116]
[1751651933235,0.1,146.83,146.81,6.81138488]
[1751651940543,0.1,146.83,146.81,6.83053005]
[1751651941961,0.1,146.83,146.82,6.83053005]
[1751651942765,0.1,146.83,146.82,13.64159121]
[1751651942952,1e-08,146.83,146.82,13.64159121]
[1751651943349,0.1,146.86,146.85,26.0]
[1751651943664,0.1,146.86,146.85,6.83053005]
[1751651943842,0.1,146.86,146.83,44.64964886]
[1751651944042,0.1,146.86,146.85,6.83053005]
[1751651944848,0.1,146.86,146.85,13.64019978]
[1751651945044,0.1,146.86,146.85,6.80966973]
[1751651947849,0.1,146.86,146.84,6.81013347]
[1751651949353,0.1,146.86,146.84,6.83053005]
[1751651949757,0.1,146.86,146.85,6.83053005]
[1751651951475,0.1,146.86,146.85,13.64019978]
[1751651952550,0.1,146.88,146.85,30.6643741]
[1751651952766,0.1,146.88,146.87,6.83053005]
[1751651953475,0.1,146.88,146.87,6.80874242]
[1751651953658,0.1,146.88,146.87,13.63927247]
[1751651953981,0.1,146.88,146.85,6.80940187]
[1751651954351,0.1,146.88,146.85,13.63993192]
[1751651955751,6.83053005,146.86,146.82,6.81106116]
[1751651956771,6.83053005,146.85,146.82,6.81106116]
[1751651957154,1.6644,146.87,146.82,6.81106116]
[1751651957454,6.83053005,146.85,146.82,6.81106116]
[1751651957658,1.6644,146.87,146.82,6.81106116]
[1751651957871,6.83053005,146.85,146.8,30.67146326]
[1751651958666,6.83053005,146.84,146.8,30.67146326]
[1751651960368,6.83053005,146.83,146.8,6.8119891]
[1751651961078,6.83053005,146.84,146.8,6.8119891]
[1751651961670,6.83053005,146.84,146.8,13.64251915]
[1751651961877,6.83053005,146.85,146.8,13.64251915]
[1751651962185,6.83053005,146.85,146.8,30.6724919]
[1751651962961,6.83053005,146.84,146.8,30.6724919]
[1751651964884,5.0854351,146.86,146.8,30.6724919]
[1751651965179,6.83053005,146.84,146.8,30.6724919]
[1751651965572,6.83053005,146.85,146.8,30.6724919]
[1751651966785,6.83053005,146.85,146.81,6.83053005]
[1751651967689,6.83053005,146.86,146.81,6.83053005]
[1751651969386,6.83053005,146.85,146.8,23.8605028]
[1751651969586,6.83053005,146.85,146.81,6.83053005]
[1751651970478,6.83053005,146.85,146.8,17.02997275]
[1751651970780,6.83053005,146.85,146.81,6.83053005]
[1751651971689,6.83053005,146.85,146.82,6.81106116]
[1751651973886,11.92386882,146.86,146.82,6.81106116]
[1751651975071,6.83053005,146.86,146.82,6.81106116]
[1751651975270,11.92482169,146.86,146.82,6.81106116]
[1751651976496,11.92482169,146.86,146.82,23.83871406]
[1751651981005,27.6644,146.87,146.83,6.83053005]
[1751651981006,6.83053005,146.87,146.83,6.83053005]
[1751651981989,6.93053005,146.88,146.84,6.81013347]
[1751651982289,12.02438963,146.88,146.84,6.81013347]
[1751651982507,6.93053005,146.88,146.84,6.81013347]
[1751651982709,0.1,146.88,146.84,6.81013347]
[1751651983010,12.02438963,146.88,146.84,23.83546716]
[1751651983192,6.93053005,146.88,146.84,30.66599721]
[1751651983708,12.02438963,146.88,146.84,30.66599721]
[1751651983900,6.93053005,146.88,146.84,30.66599721]
[1751651984308,12.02519692,146.88,146.84,30.66599721]
[1751651984492,6.93053005,146.88,146.84,30.66599721]
[1751651984694,5.09466687,146.87,146.84,30.66599721]
[1751651985116,6.93053005,146.88,146.84,30.66599721]
[1751651985619,12.02519692,146.88,146.84,30.66599721]
[1751651985807,6.93053005,146.88,146.84,30.66599721]
[1751651986189,12.02519692,146.88,146.84,30.66599721]
[1751651986390,6.93053005,146.88,146.84,30.66599721]
[1751651986891,12.02519692,146.88,146.84,30.66599721]
[1751651987091,6.93053005,146.88,146.84,30.66599721]
[1751651987508,12.02519692,146.88,146.84,30.66599721]
[1751651987708,6.93053005,146.88,146.84,30.66599721]
[1751651988017,0.1,146.88,146.84,30.66599721]
[1751651988218,6.93053005,146.88,146.84,30.66599721]
[1751651988713,12.02519692,146.88,146.84,30.66599721]
[1751651988880,6.93053005,146.88,146.84,30.66599721]
[1751651989284,12.02519692,146.88,146.84,30.66599721]
[1751651989516,6.93053005,146.88,146.84,30.66599721]